bitfinex/quotes_SOLUSD_20251119
["timestamp","ask_amount","ask_price","bid_price","bid_amount"]
[1763520021375,9.78882769,141.94,141.87,0.69]
[1763520021524,9.78882769,141.94,141.85,0.89]
[1763520021525,2.29156844,141.89,141.85,0.89]
[1763520021838,2.29156844,141.9,141.85,0.89]
[1763520022042,2.29156844,141.9,141.85,2.49156844]
[1763520022337,2.29156844,141.9,141.86,0.69]
[1763520022913,8.88481839,141.9,141.86,0.69]
[1763520024543,8.88481839,141.91,141.86,0.69]
[1763520024841,9.29481839,141.91,141.86,0.69]
[1763520026050,8.88481839,141.9,141.86,0.69]
[1763520026420,8.88481839,141.92,141.87,8.88481839]
[1763520026634,8.88481839,141.92,141.88,0.65]
[1763520026843,9.29481839,141.92,141.88,0.65]
[1763520027060,8.88481839,141.91,141.88,0.65]
[1763520029144,8.88481839,141.92,141.88,0.65]
[1763520032427,18.67364608,141.93,141.88,0.65]
[1763520033620,19.08364608,141.93,141.88,0.65]
[1763520034255,8.88481839,141.92,141.88,0.65]
[1763520035645,4.2,141.95,141.89,8.88481839]
[1763520035840,8.88481839,141.95,141.89,8.88481839]
[1763520036041,8.88481839,141.95,141.9,0.65]
[1763520036428,9.29481839,141.95,141.9,0.65]
[1763520036628,9.78882769,141.97,141.92,8.88481839]
[1763520036826,18.67364608,141.97,141.92,8.88481839]
[1763520037046,18.67364608,141.98,141.93,9.53481839]
[1763520037346,8.88481839,141.97,141.93,0.65]
[1763520037649,4.2,141.99,141.94,0.65]
[1763520037834,8.88481839,141.98,141.94,0.65]
[1763520038237,9.29481839,141.98,141.94,0.65]
[1763520038448,8.88481839,141.97,141.93,0.65]
[1763520038752,8.88481839,141.97,141.91,4.2]
[1763520038753,8.88481839,141.96,141.91,4.85]
[1763520039052,8.88481839,141.97,141.92,0.65]
[1763520039256,4.2,141.99,141.93,8.88481839]
[1763520039549,8.88481839,141.98,141.93,8.88481839]
[1763520039751,8.88481839,141.98,141.94,0.65]
[1763520039947,8.88481839,141.97,141.92,0.65]
[1763520040644,8.88481839,141.97,141.92,9.53481839]
[1763520040951,8.88481839,141.97,141.93,0.65]
[1763520042044,8.88481839,141.98,141.93,9.53481839]
[1763520042251,4.2,141.99,141.93,9.53481839]
[1763520042458,18.53096,142.02,141.94,9.60481839]
[1763520042642,18.53096,142.02,141.93,18.12096]
[1763520042643,8.88481839,142.0,141.95,9.60481839]
[1763520042843,18.67364608,142.01,141.95,13.80481839]
[1763520043155,18.67364608,142.01,141.96,0.72]
[1763520043629,19.08364608,142.01,141.96,0.72]
[1763520043828,18.67364608,142.01,141.96,0.72]
[1763520044163,8.88481839,142.0,141.96,0.72]
[1763520044329,8.88481839,141.98,141.93,4.92]
[1763520044743,8.88481839,141.99,141.94,0.72]
[1763520045048,8.88481839,141.99,141.94,4.30373937]
[1763520045049,3.58373937,141.99,141.94,4.30373937]
[1763520045243,3.58373937,141.99,141.95,0.72]
[1763520045447,3.99373937,141.99,141.95,0.72]
[1763520047521,0.41,141.99,141.95,0.72]
[1763520047725,3.99373937,141.99,141.95,0.72]
[1763520049358,9.78882769,141.96,141.91,3.58373937]
[1763520049527,13.37256706,141.96,141.91,0.72]
[1763520049858,3.58373937,141.97,141.92,0.72]
[1763520050069,3.58373937,141.97,141.92,4.30373937]
[1763520050543,3.58373937,141.98,141.93,0.72]
[1763520050740,3.58373937,141.98,141.93,4.30373937]
[1763520050949,3.58373937,142.0,141.95,3.58373937]
[1763520051154,3.99373937,142.01,141.95,3.58373937]
[1763520051332,3.99373937,142.01,141.96,0.72]
[1763520052874,3.58373937,142.0,141.96,0.72]
[1763520053045,3.99373937,142.0,141.96,0.72]
[1763520053238,3.58373937,142.0,141.96,0.72]
[1763520056252,8.93691442,142.02,141.94,8.50373937]
[1763520056253,3.99373937,141.99,141.94,8.50373937]
[1763520056447,3.58373937,141.99,141.95,0.72]
[1763520057747,18.12096,142.03,141.97,3.58373937]
[1763520058049,21.70469937,142.03,141.97,3.58373937]
[1763520058251,13.37256706,142.03,141.98,0.72]
[1763520058669,13.78256706,142.03,141.98,4.30373937]
[1763520059176,13.78256706,142.03,141.99,0.72]
[1763520059367,10.19882769,142.03,141.99,0.72]
[1763520059572,3.99373937,142.02,141.97,4.30373937]
[1763520059778,3.99373937,142.02,141.97,0.72]
[1763520059779,3.58373937,142.01,141.97,0.72]
[1763520059962,3.99373937,142.02,141.98,0.72]
[1763520060290,22.11469937,142.02,141.98,0.72]
[1763520062291,10.19882769,142.01,141.96,4.30373937]
[1763520062486,10.19882769,142.01,141.97,0.72]
[1763520062860,9.78882769,142.01,141.97,0.72]
[1763520063262,3.58373937,142.0,141.95,4.2]
[1763520063462,3.58373937,142.0,141.96,0.72]
[1763520063665,3.99373937,142.0,141.96,0.72]
[1763520064176,3.58373937,142.0,141.96,0.72]
[1763520064755,13.78256706,141.99,141.92,0.72]
[1763520065072,22.32096,142.02,141.9,0.72]
[1763520065073,3.58373937,141.93,141.9,0.72]
[1763520066056,3.58373937,141.93,141.87,3.58373937]
[1763520066380,3.58373937,141.93,141.87,4.30373937]
[1763520066587,3.58373937,141.93,141.88,0.72]
[1763520066968,3.58373937,141.92,141.88,0.72]
[1763520067184,3.58373937,141.91,141.88,0.72]
[1763520067483,10.19882769,141.93,141.88,0.72]
[1763520067785,3.58373937,141.92,141.88,0.72]
[1763520068797,3.58373937,141.91,141.88,0.72]
[1763520070809,3.58373937,141.91,141.86,3.58373937]
[1763520070991,3.58373937,141.91,141.86,0.72]
[1763520070992,3.58373937,141.9,141.86,0.72]
[1763520071304,3.58373937,141.9,141.85,7.98373937]
[1763520071305,3.58373937,141.89,141.85,4.4]
[1763520071479,3.58373937,141.88,141.85,4.4]
[1763520072061,3.58373937,141.87,141.85,0.2]
[1763520072261,3.58373937,141.86,141.85,0.2]
[1763520072690,13.37256706,141.86,141.85,0.2]
[1763520072879,3.58373937,141.87,141.85,0.2]
[1763520074727,3.58373937,141.86,141.85,0.2]
[1763520075237,9.78882769,141.87,141.85,0.2]
[1763520075238,13.37256706,141.87,141.85,0.2]
[1763520076625,3.58373937,141.86,141.85,0.2]
[1763520076936,9.78882769,141.88,141.85,0.2]
[1763520077089,3.58373937,141.87,141.85,0.2]
[1763520077922,3.58373937,141.86,141.85,0.2]
[1763520081227,31.90352706,141.86,141.82,0.2]
[1763520081426,31.49352706,141.83,141.82,0.2]
[1763520081636,35.69352706,141.83,141.82,0.2]
[1763520081804,36.10352706,141.83,141.82,0.2]
[1763520082410,31.49352706,141.8,141.79,0.2]
[1763520082608,9.78882769,141.79,141.75,0.2]
[1763520082935,12.09032568,141.76,141.75,0.2]
[1763520083434,12.50032568,141.76,141.75,0.2]
[1763520085627,16.70032568,141.76,141.75,0.2]
[1763520088432,16.29032568,141.76,141.75,0.2]
[1763520088632,0.41,141.8,141.75,0.2]
[1763520088931,2.30149799,141.77,141.75,0.88]
[1763520089138,2.30149799,141.78,141.75,0.88]
[1763520089438,4.2,141.79,141.75,0.88]
[1763520089439,2.30149799,141.77,141.75,0.88]
[1763520093344,2.30149799,141.78,141.75,0.88]
[1763520093548,9.78882769,141.8,141.75,0.2]
[1763520093713,2.30149799,141.78,141.76,0.68]
[1763520093918,16.29032568,141.8,141.76,0.68]
[1763520094226,9.78882769,141.8,141.76,0.68]
[1763520094435,2.30149799,141.81,141.76,2.98149799]
[1763520094942,2.30149799,141.81,141.77,0.68]
[1763520095243,6.50149799,141.82,141.77,0.68]
[1763520096151,2.30149799,141.82,141.77,0.68]
[1763520096354,2.30149799,141.82,141.77,2.98149799]
[1763520096959,2.30149799,141.82,141.78,0.68]
[1763520098171,2.30149799,141.81,141.78,0.68]
[1763520098864,14.39882769,141.83,141.78,0.68]
[1763520099037,2.30149799,141.81,141.78,0.68]
[1763520099440,14.39882769,141.83,141.78,0.68]
[1763520099738,2.30149799,141.81,141.78,0.68]
[1763520100072,2.30149799,141.79,141.75,0.2]
[1763520100369,2.30149799,141.79,141.76,0.68]
[1763520101053,16.29032568,141.8,141.76,0.68]
[1763520101862,6.50149799,141.8,141.76,0.68]
[1763520102371,2.30149799,141.79,141.76,0.68]
[1763520103561,2.30149799,141.78,141.76,0.68]
[1763520104071,2.30149799,141.79,141.76,0.68]
[1763520104745,2.30149799,141.78,141.75,0.2]
[1763520105071,2.30149799,141.78,141.75,0.9]
[1763520105769,2.30149799,141.79,141.75,0.9]
[1763520106072,12.09032568,141.79,141.75,0.9]
[1763520106273,2.30149799,141.79,141.76,0.7]
[1763520106571,6.50149799,141.8,141.76,0.7]
[1763520106741,2.30149799,141.79,141.75,0.2]
[1763520106944,2.30149799,141.79,141.76,0.7]
[1763520107179,2.30149799,141.79,141.75,0.2]
[1763520107180,2.30149799,141.78,141.75,0.9]
[1763520107479,2.30149799,141.78,141.75,0.2]
[1763520107767,12.09032568,141.79,141.76,0.7]
[1763520108154,12.09032568,141.79,141.75,0.9]
[1763520108558,12.50032568,141.79,141.75,0.9]
[1763520108946,12.50032568,141.79,141.75,0.2]
[1763520108947,2.71149799,141.78,141.75,0.2]
[1763520109744,2.30149799,141.77,141.75,0.2]
[1763520110182,20.83245799,141.76,141.75,0.2]
[1763520110973,20.42245799,141.76,141.75,0.2]
[1763520111150,18.12096,141.76,141.75,0.2]
[1763520111347,20.42245799,141.76,141.75,0.2]
[1763520112968,18.12096,141.76,141.75,0.9]
[1763520113173,18.12096,141.76,141.75,0.2]
[1763520113552,18.12096,141.76,141.75,0.9]
[1763520114760,18.12096,141.76,141.75,0.2]
[1763520114959,2.30149799,141.78,141.75,0.9]
[1763520115360,2.30149799,141.78,141.76,0.7]
[1763520115561,2.30149799,141.78,141.75,0.9]
[1763520117293,2.30149799,141.78,141.76,0.7]
[1763520117480,2.30149799,141.77,141.75,0.2]
[1763520118172,2.30149799,141.77,141.75,0.9]
[1763520118380,2.30149799,141.78,141.75,0.9]
[1763520120788,12.50032568,141.77,141.75,0.2]
[1763520120964,2.30149799,141.76,141.75,0.2]
[1763520121863,34.82128568,141.76,141.75,0.2]
[1763520122590,39.56199723,141.76,141.75,0.2]
[1763520123862,21.44103723,141.76,141.75,0.2]
[1763520124172,21.44103723,141.76,141.74,0.2]
[1763520124173,9.78882769,141.71,141.7,0.2]
[1763520124371,2.30149799,141.71,141.7,0.2]
[1763520124564,6.50149799,141.71,141.7,0.2]
[1763520124763,18.12096,141.72,141.7,0.9]
[1763520124764,20.42245799,141.72,141.7,0.9]
[1763520125175,20.42245799,141.72,141.7,0.2]
[1763520125376,20.83245799,141.72,141.7,0.2]
[1763520125579,2.30149799,141.71,141.7,0.2]
[1763520126677,18.12096,141.72,141.7,0.2]
[1763520126871,2.30149799,141.71,141.7,0.2]
[1763520128270,16.29032568,141.73,141.7,0.9]
[1763520128670,16.29032568,141.73,141.71,0.7]
[1763520128870,16.29032568,141.73,141.7,0.2]
[1763520128871,2.30149799,141.72,141.7,0.2]
[1763520129082,2.30149799,141.72,141.7,0.9]
[1763520129592,2.30149799,141.72,141.7,0.2]
[1763520129831,2.30149799,141.72,141.71,0.7]
[1763520131392,13.98882769,141.73,141.71,0.7]
[1763520131393,2.30149799,141.73,141.71,0.7]
[1763520131894,2.30149799,141.74,141.71,0.7]
[1763520134014,20.42245799,141.75,141.71,0.7]
[1763520134507,2.30149799,141.74,141.7,0.2]
[1763520134681,2.30149799,141.73,141.71,0.7]
[1763520135201,2.30149799,141.74,141.71,0.7]
[1763520140525,2.30149799,141.72,141.7,0.2]
[1763520140685,2.30149799,141.72,141.7,0.9]
[1763520140889,2.30149799,141.72,141.71,0.7]
[1763520143314,4.2,141.74,141.71,0.7]
[1763520143518,2.30149799,141.76,141.71,0.7]
[1763520143815,2.30149799,141.76,141.71,3.00149799]
[1763520144200,2.30149799,141.76,141.72,0.69]
[1763520144915,3.59506654,141.76,141.72,0.69]
[1763520145120,3.59506654,141.75,141.72,0.69]
[1763520146212,3.59506654,141.76,141.72,0.69]
[1763520147696,3.59506654,141.73,141.7,0.2]
[1763520147896,3.59506654,141.73,141.71,0.69]
[1763520148320,21.71602654,141.74,141.71,0.69]
[1763520148526,18.12096,141.74,141.71,0.69]
[1763520148707,21.71602654,141.74,141.71,0.69]
[1763520155804,21.71602654,141.74,141.7,0.2]
[1763520155805,9.78882769,141.71,141.7,0.2]
[1763520156103,35.70485423,141.71,141.7,0.2]
[1763520156299,36.11485423,141.71,141.7,0.2]
[1763520158510,17.99389423,141.71,141.7,0.2]
[1763520159132,13.79389423,141.71,141.7,0.2]
[1763520160130,13.38389423,141.71,141.7,0.2]
[1763520160325,13.79389423,141.71,141.7,0.2]
[1763520162731,31.50485423,141.71,141.7,0.2]
[1763520164728,27.90978769,141.71,141.7,0.2]
[1763520164931,31.50485423,141.71,141.7,0.2]
[1763520165242,31.91485423,141.71,141.7,0.2]
[1763520165609,31.50485423,141.71,141.7,0.2]
[1763520172409,31.91485423,141.71,141.7,0.2]
[1763520173725,31.50485423,141.71,141.7,0.2]
[1763520175334,18.54864841,141.71,141.7,0.2]
[1763520175643,21.38120869,141.71,141.69,0.2]
[1763520175822,17.99389423,141.7,141.69,0.2]
[1763520176019,22.74864841,141.7,141.69,0.2]
[1763520176938,27.90978769,141.67,141.66,0.2]
[1763520177139,35.70485423,141.67,141.66,0.2]
[1763520177365,36.11485423,141.67,141.66,0.2]
[1763520178639,9.78882769,141.66,141.65,0.2]
[1763520178846,17.38896077,141.66,141.65,0.2]
[1763520182426,20.22252433,141.66,141.65,0.2]
[1763520182642,20.22252433,141.66,141.61,0.2]
[1763520182643,9.78882769,141.62,141.61,0.2]
[1763520182826,17.58389423,141.62,141.61,0.2]
[1763520186747,17.99389423,141.62,141.61,0.2]
[1763520187560,17.99389423,141.62,141.56,0.87]
[1763520187561,9.78882769,141.58,141.56,0.87]
[1763520187860,13.38389423,141.57,141.56,0.87]
[1763520189527,13.38389423,141.57,141.56,0.2]
[1763520190535,13.38389423,141.57,141.56,0.87]
[1763520190731,13.38389423,141.57,141.56,0.2]
[1763520191348,13.38389423,141.57,141.56,0.87]
[1763520193668,9.78882769,141.57,141.56,0.87]
[1763520193852,9.78882769,141.62,141.56,0.87]
[1763520194060,13.38389423,141.58,141.57,0.72]
[1763520194261,4.2,141.61,141.57,0.72]
[1763520194452,13.38389423,141.6,141.57,0.72]
[1763520194652,18.12096,141.58,141.57,0.72]
[1763520195969,21.71602654,141.58,141.57,0.72]
[1763520196754,18.12096,141.58,141.57,0.72]
[1763520198268,3.59506654,141.59,141.57,0.72]
[1763520199878,13.38389423,141.6,141.57,0.72]
[1763520202182,3.59506654,141.59,141.57,0.72]
[1763520202861,0.41,141.67,141.57,4.31506654]
[1763520203061,3.59506654,141.63,141.58,0.68]
[1763520203362,13.98882769,141.66,141.58,0.68]
[1763520203363,3.59506654,141.65,141.6,3.59506654]
[1763520203562,3.59506654,141.65,141.61,0.68]
[1763520203973,3.59506654,141.64,141.61,0.68]
[1763520204894,2.04878036,141.62,141.61,0.68]
[1763520206363,11.83760805,141.62,141.61,0.68]
[1763520207867,11.83760805,141.62,141.56,0.2]
[1763520208075,2.04878036,141.6,141.59,0.68]
[1763520208276,2.04878036,141.6,141.57,0.68]
[1763520208578,2.04878036,141.58,141.57,0.68]
[1763520208780,2.83416586,141.64,141.57,0.68]
[1763520208981,18.12096,141.6,141.57,0.68]
[1763520209357,11.83760805,141.59,141.57,0.68]
[1763520209774,2.04878036,141.58,141.57,0.68]
[1763520210176,11.83760805,141.59,141.57,0.68]
[1763520212661,4.2,141.61,141.57,0.68]
[1763520212861,6.24878036,141.61,141.57,0.68]
[1763520215264,4.2,141.61,141.57,0.68]
[1763520220496,6.24878036,141.61,141.57,0.68]
[1763520222710,12.24760805,141.6,141.57,0.68]
[1763520222872,27.90978769,141.57,141.56,0.2]
[1763520223206,29.95856805,141.57,141.56,0.2]
[1763520225672,27.90978769,141.57,141.56,0.2]
[1763520225973,29.95856805,141.57,141.56,0.2]
[1763520231486,4.2,141.58,141.56,0.92]
[1763520231705,2.04878036,141.59,141.56,0.92]
[1763520232007,18.12096,141.58,141.57,0.72]
[1763520232385,2.04878036,141.59,141.57,0.72]
[1763520235303,20.16974036,141.58,141.57,0.72]
[1763520236501,20.16974036,141.58,141.56,0.2]
[1763520236673,2.04878036,141.57,141.56,0.92]
[1763520237300,11.83760805,141.57,141.56,0.92]
[1763520239481,11.83760805,141.57,141.56,0.2]
[1763520240082,11.83760805,141.57,141.56,0.92]
[1763520245991,22.32096,141.58,141.56,0.92]
[1763520246311,32.10978769,141.58,141.57,0.72]
[1763520246494,34.15856805,141.58,141.57,0.72]
[1763520246900,16.03760805,141.58,141.56,0.92]
[1763520247214,2.04878036,141.57,141.56,0.92]
[1763520247710,11.83760805,141.57,141.56,0.92]
[1763520249107,22.32096,141.58,141.56,0.92]
[1763520249307,32.10978769,141.58,141.57,0.72]
[1763520249501,16.03760805,141.58,141.57,0.72]
[1763520249943,2.04878036,141.59,141.57,0.72]
[1763520250089,11.83760805,141.59,141.57,0.72]
[1763520251015,2.04878036,141.59,141.57,0.72]
[1763520251321,11.83760805,141.59,141.57,0.72]
[1763520251530,2.83416586,141.64,141.57,0.72]
[1763520251687,2.04878036,141.61,141.57,0.72]
[1763520251884,2.04878036,141.59,141.57,0.72]
[1763520252697,9.78882769,141.61,141.57,0.72]
[1763520252899,2.04878036,141.59,141.57,0.72]
[1763520254017,9.78882769,141.61,141.57,0.72]
[1763520254193,2.04878036,141.59,141.57,0.72]
[1763520254393,9.78882769,141.61,141.57,0.72]
[1763520254587,2.04878036,141.6,141.57,0.72]
[1763520255324,2.04878036,141.58,141.57,0.72]
[1763520255622,2.04878036,141.58,141.56,0.2]
[1763520255623,29.95856805,141.58,141.56,0.2]
[1763520255830,2.04878036,141.57,141.56,0.88]
[1763520256006,27.90978769,141.58,141.56,0.88]
[1763520256007,29.95856805,141.58,141.56,0.88]
[1763520256327,29.95856805,141.58,141.57,0.68]
[1763520256999,0.72,141.63,141.57,0.68]
[1763520257335,2.76878036,141.63,141.57,2.72878036]
[1763520257631,20.88974036,141.63,141.57,2.72878036]
[1763520257793,0.72,141.63,141.58,0.68]
[1763520257992,2.04878036,141.63,141.58,0.68]
[1763520258314,20.16974036,141.63,141.58,0.68]
[1763520258517,20.16974036,141.63,141.58,2.72878036]
[1763520259020,9.78882769,141.62,141.59,0.68]
[1763520260008,11.83760805,141.62,141.59,0.68]
[1763520260207,2.76878036,141.61,141.56,0.88]
[1763520260410,9.78882769,141.59,141.57,0.68]
[1763520260710,11.83760805,141.59,141.57,0.68]
[1763520264528,9.78882769,141.59,141.57,0.68]
[1763520264710,11.83760805,141.59,141.56,0.2]
[1763520264908,12.99211222,141.59,141.56,0.89]
[1763520265112,9.78882769,141.59,141.56,0.89]
[1763520265521,9.78882769,141.6,141.57,0.69]
[1763520266099,13.69211222,141.6,141.57,0.69]
[1763520270234,13.69211222,141.6,141.56,0.2]
[1763520270401,13.69211222,141.6,141.57,0.69]
[1763520271302,12.99211222,141.6,141.56,0.89]
[1763520271498,9.78882769,141.58,141.56,0.89]
[1763520272013,9.78882769,141.58,141.56,0.2]
[1763520272729,13.69211222,141.58,141.56,0.2]
[1763520275099,4.2,141.61,141.56,0.89]
[1763520275100,3.90328453,141.59,141.56,0.89]
[1763520276526,0.7,141.58,141.56,0.2]
[1763520277640,3.90328453,141.59,141.56,0.89]
[1763520278803,3.90328453,141.59,141.56,0.2]
[1763520279833,3.90328453,141.59,141.56,0.89]
[1763520280336,9.78882769,141.59,141.57,0.69]
[1763520285945,4.92,141.61,141.57,0.69]
[1763520286243,8.12328453,141.61,141.57,0.69]
[1763520286445,7.40328453,141.61,141.57,0.69]
[1763520286633,0.72,141.6,141.57,0.69]
[1763520287452,9.78882769,141.59,141.56,0.2]
[1763520287640,9.78882769,141.59,141.56,0.9]
[1763520288026,10.50882769,141.59,141.56,0.9]
[1763520288727,9.78882769,141.59,141.57,0.7]
[1763520291147,9.78882769,141.59,141.56,0.2]
[1763520291446,10.50882769,141.59,141.56,0.9]
[1763520291814,0.72,141.58,141.56,0.2]
[1763520292318,3.92328453,141.59,141.56,0.9]
[1763520292936,0.72,141.59,141.56,0.9]
[1763520298949,9.78882769,141.6,141.57,3.90328453]
[1763520299150,10.50882769,141.6,141.57,0.7]
[1763520301731,9.78882769,141.58,141.56,0.2]
[1763520302040,0.72,141.59,141.56,0.9]
[1763520302238,9.78882769,141.6,141.56,0.9]
[1763520302445,10.50882769,141.6,141.57,0.7]
[1763520302930,9.78882769,141.6,141.57,0.7]
[1763520303257,0.72,141.64,141.59,3.20328453]
[1763520303560,3.20328453,141.62,141.57,4.10328453]
[1763520303732,3.20328453,141.62,141.57,0.7]
[1763520303931,9.78882769,141.6,141.58,0.7]
[1763520305047,9.78882769,141.58,141.56,0.2]
[1763520305226,12.99211222,141.58,141.56,0.2]
[1763520305425,13.71211222,141.58,141.56,0.2]
[1763520306251,10.50882769,141.58,141.56,0.2]
[1763520306444,9.78882769,141.58,141.56,0.2]
[1763520307029,10.50882769,141.58,141.56,0.2]
[1763520307250,10.50882769,141.57,141.56,0.2]
[1763520307562,17.91211222,141.57,141.56,0.2]
[1763520315170,14.70882769,141.57,141.56,0.2]
[1763520315461,17.91211222,141.57,141.56,0.2]
[1763520317481,13.98882769,141.57,141.56,0.87]
[1763520317659,9.78882769,141.57,141.56,0.87]
[1763520317962,12.99211222,141.57,141.56,0.2]
[1763520318138,9.78882769,141.57,141.56,0.2]
[1763520320540,13.66211222,141.57,141.56,0.2]
[1763520320950,12.99211222,141.57,141.56,0.2]
[1763520321164,13.66211222,141.57,141.56,0.2]
[1763520323758,10.45882769,141.57,141.56,0.2]
[1763520326975,9.78882769,141.57,141.56,0.2]
[1763520328070,9.78882769,141.57,141.56,0.88]
[1763520328884,9.78882769,141.57,141.56,0.2]
[1763520331860,18.12096,141.59,141.56,0.88]
[1763520332060,9.78882769,141.58,141.56,0.88]
[1763520337775,5.9553296,141.67,141.57,0.68]
[1763520337980,2.0506412,141.63,141.58,2.0506412]
[1763520338181,4.76440137,141.66,141.6,2.0506412]
[1763520338182,2.0506412,141.65,141.6,2.0506412]
[1763520338373,6.9206412,141.66,141.61,2.0506412]
[1763520338675,9.78882769,141.65,141.61,2.0506412]
[1763520338875,9.78882769,141.65,141.62,0.68]
[1763520339078,18.12096,141.66,141.62,0.68]
[1763520339282,4.2,141.68,141.62,0.68]
[1763520339477,12.50946889,141.67,141.62,2.7306412]
[1763520339678,10.45882769,141.67,141.62,2.7306412]
[1763520339870,0.67,141.66,141.63,0.68]
[1763520343104,29.96042889,141.65,141.58,18.12096]
[1763520343272,27.90978769,141.61,141.56,0.87]
[1763520343472,29.96042889,141.61,141.56,2.9206412]
[1763520343775,0.71,141.6,141.56,2.9206412]
[1763520344899,4.2,141.64,141.58,2.0506412]
[1763520344900,18.12096,141.62,141.58,2.0506412]
[1763520345199,18.12096,141.62,141.59,2.0506412]
[1763520345394,0.71,141.64,141.6,2.7206412]
[1763520345598,0.71,141.64,141.61,0.67]
[1763520345799,0.71,141.64,141.61,2.7206412]
[1763520345800,18.12096,141.64,141.61,2.7206412]
[1763520346383,10.49882769,141.65,141.61,2.7206412]
[1763520346592,28.61978769,141.65,141.61,2.7206412]
[1763520346774,4.2,141.68,141.56,0.2]
[1763520346775,4.2,141.68,141.62,0.67]
[1763520346977,4.2,141.68,141.61,2.0506412]
[1763520346978,0.71,141.66,141.61,2.0506412]
[1763520347191,20.8816012,141.66,141.61,2.0506412]
[1763520347398,20.8816012,141.66,141.62,0.67]
[1763520347600,0.71,141.65,141.62,0.67]
[1763520348782,18.83096,141.66,141.62,0.67]
[1763520348989,0.71,141.65,141.62,2.7206412]
[1763520350408,18.83096,141.66,141.62,2.7206412]
[1763520350813,18.83096,141.66,141.62,0.67]
[1763520351590,0.71,141.65,141.62,0.67]
[1763520351991,18.83096,141.66,141.62,0.67]
[1763520352187,18.12096,141.66,141.62,0.67]
[1763520352387,0.71,141.65,141.62,2.7206412]
[1763520354112,0.71,141.65,141.62,2.0506412]
[1763520354685,104.3,141.69,141.58,4.4]
[1763520354686,0.71,141.69,141.64,2.0506412]
[1763520354889,0.71,141.69,141.65,2.0506412]
[1763520355212,9.78882769,141.7,141.65,2.0506412]
[1763520355510,0.71,141.69,141.66,0.67]
[1763520355712,2.7606412,141.69,141.63,0.67]
[1763520355899,2.7606412,141.69,141.64,2.0506412]
[1763520356309,2.7606412,141.69,141.65,0.67]
[1763520356905,20.1716012,141.7,141.65,2.7206412]
[1763520357115,20.8816012,141.7,141.65,2.7206412]
[1763520357311,20.8816012,141.7,141.66,0.67]
[1763520357704,0.71,141.69,141.66,0.67]
[1763520358316,20.1716012,141.7,141.66,0.67]
[1763520358496,20.8816012,141.7,141.66,0.67]
[1763520362140,18.12096,141.7,141.66,0.67]
[1763520362431,12.54946889,141.72,141.67,2.0506412]
[1763520362794,0.71,141.71,141.68,0.67]
[1763520363018,0.71,141.71,141.67,2.0506412]
[1763520363229,11.83946889,141.72,141.68,0.67]
[1763520363414,12.54946889,141.72,141.68,0.67]
[1763520363717,29.96042889,141.7,141.65,4.87]
[1763520363926,29.96042889,141.7,141.65,6.9206412]
[1763520364216,2.7606412,141.69,141.66,0.67]
[1763520364404,0.71,141.69,141.66,0.67]
[1763520364924,18.12096,141.7,141.66,2.7206412]
[1763520365094,18.12096,141.7,141.67,0.67]
[1763520365420,18.83096,141.7,141.67,0.67]
[1763520366118,9.98882769,141.73,141.69,2.0506412]
[1763520366413,9.98882769,141.73,141.7,0.67]
[1763520367209,10.69882769,141.73,141.7,0.67]
[1763520367431,2.2506412,141.73,141.7,0.67]
[1763520367610,0.2,141.73,141.7,0.67]
[1763520368106,0.2,141.73,141.7,2.7206412]
[1763520368516,0.2,141.73,141.71,0.67]
[1763520370301,0.2,141.73,141.72,2.0506412]
[1763520370695,0.2,141.73,141.72,2.7206412]